[Event "SixDays Budapest GM-B January 2024"]
[Site "Budapest"]
[Date "2024.01.28"]
[Round "2.3"]
[White "Coenen, Michael"]
[Black "Dau Khuong Duy"]
[Result "1-0"]
[ECO "E92"]
[WhiteElo "2330"]
[BlackElo "2309"]
[Annotator "TA"]
[PlyCount "81"]
[EventDate "2024.01.26"]
[EventType "tourn"]
[EventCountry "HUN"]
[SourceTitle "playchess.com"]
[Source "ChessBase"]
[SourceQuality "1"]
[TimeControl "5400+30"]

{[%evp 19,81,37,33,33,50,55,50,31,44,39,59,43,86,51,97,64,254,240,236,236,247,241,253,247,261,257,303,232,263,250,254,107,116,124,129,123,354,356,472,496,473,467,760,425,555,539,523,500,592,575,524,581,570,572,608,593,1624,1624,1624,895,5393,6176,6161,6053]} 1. d4 {[%emt 0:00:03]} Nf6 {[%emt 0:00:14]} 2. c4 {[%emt 0:00:05]} g6 {[%emt 0:00:12]} 3. Nc3 {[%emt 0:00:05]} Bg7 {[%emt 0:00:18]} 4. e4 {[%emt 0:00:06]} d6 {[%emt 0:00:28]} 5. Be2 {[%emt 0:00:07]} O-O {[%emt 0:00:38]} 6. Nf3 {[%emt 0:00:04]} e5 {[%emt 0:00:56]} 7. d5 {[%emt 0:00:07]} a5 {[%emt 0:01:55]} 8. Be3 {[%emt 0:00:07]} Ng4 {[%emt 0:01:40]} 9. Bg5 {[%emt 0:00:05]} f6 {[%emt 0:02:20][%cal Bf7f6,Bf6f5][%mdl 32]} 10. Bh4 {[%emt 0:00:07]} Nh6 {[%emt 0:03:17]} 11. Nd2 {[%emt 0:00:07]} g5 {[%emt 0:01:40]} 12. Bg3 {[%emt 0:00:02][%cal Bh4g3,Bg3f2,Bf2e3][%mdl 32]} f5 {[%emt 0:00:06]} 13. h3 {[%emt 0:01:13] White is slightly better.} Na6 {[%emt 0:02:52]} 14. f3 {[%emt 0:00:30]} Bd7 {[%emt 0:04:51]} 15. a3 {[%emt 0:02:07]} Nf7 {[%emt 0:12:35]} 16. Rb1 {[%emt 0:10:17]} c5 {[%emt 0:06:22]} (16... Nc5 $14 {feels stronger.}) 17. Bf2 {[%emt 0:19:09] And now exf5 would win.} h5 $2 {[%emt 0:08:55]} ({Black should play} 17... f4 $14) 18. exf5 $18 {[%emt 0:08:43]} Bxf5 {[%emt 0:00:19]} 19. Nde4 {[%emt 0:00:05]} h4 {[%emt 0:21:12]} 20. Be3 {[%emt 0:08:58]} Nc7 {[%emt 0:08:02]} 21. Qd2 {[%emt 0:05:05]} Bf6 {[%emt 0:01:51]} 22. Bd3 {[%emt 0:02:12]} Bd7 {[%emt 0:02:07]} 23. Nxf6+ {[%emt 0:01:47]} Qxf6 {[%emt 0:00:07]} 24. Ne4 {[%emt 0:00:03]} Qg7 {[%emt 0:01:03]} 25. Nxg5 {[%emt 0:18:36]} (25. O-O $18 {has better winning chances.}) 25... Nxg5 $16 {[%emt 0:01:49]} 26. Bxg5 {[%emt 0:00:02][%cal Oe1g1]} Bf5 {[%emt 0:01:44] [#] aiming for ...Bxd3.} 27. Be3 {[%emt 0:07:28]} (27. Bxh4 $2 Qh7 28. Ke2 (28. Qg5+ $2 Kh8 $19) 28... Qxh4 $19) 27... e4 $2 {[%emt 0:07:00]} 28. fxe4 $18 {[%emt 0:00:02]} Bd7 {[%emt 0:03:37]} 29. Bf4 {[%emt 0:04:28] Wards off Qg3+. White is clearly winning.} Rf6 {[%emt 0:00:32]} 30. O-O {[%emt 0:04:14]} ({Not} 30. e5 dxe5 31. Bg5 (31. Bxe5 $2 Re8 $19) 31... Rf7 $18) 30... Bxh3 {[%emt 0:00:14]} (30... Raf8 $142 31. Kh1 (31. Qxa5 $2 {is the wrong capture.} Bxh3 32. Qd2 Rxf4 $19) (31. e5 dxe5 32. Bh2 Rxf1+ 33. Bxf1 Bxh3 $18) 31... b5) 31. Kh1 {[%emt 0:01:06]} Bg4 {[%emt 0:00:59]} 32. Qe3 {[%emt 0:02:27]} Re8 {[%emt 0:00:29]} 33. Rbe1 {[%emt 0:02:18]} b5 {[%emt 0:01:22]} 34. e5 {[%emt 0:01:55]} bxc4 {[%emt 0:01:16]} 35. Bxc4 {[%emt 0:03:09] This pair of bishops is nice.} Rf5 {[%emt 0:00:28]} 36. Bh2 {[%emt 0:00:22]} Rxf1+ {[%emt 0:02:10]} 37. Rxf1 {[%emt 0:00:51]} dxe5 {[%emt 0:00:08]} 38. d6+ {[%emt 0:00:34][%cal Bd5d6,Bd6d7][%mdl 32]} Be6 {[%emt 0:00:07]} 39. Qxc5 {[%emt 0:00:23][%cal Oh2e5] [#] Bxe5! would kill now.} Qg4 {[%emt 0:01:01]} 40. Bxe6+ {[%emt 0:00:36]} Nxe6 {[%emt 0:00:06]} 41. d7 {[%emt 0:00:38] Weighted Error Value: White=0.33/Black=0.54.  Loses game:     	---       	Black=2      Mistake:       	White=1     	Black=2      Inaccurate:     	White=3     	Black=4      OK:         	White=9     	Black=5      Best:        	White=2     	Black=2} 1-0

[Event "SixDays Budapest GM-B January 2024"]
[Site "Budapest"]
[Date "2024.01.28"]
[Round "2.4"]
[White "Lee, Alice"]
[Black "Pang, Tao"]
[Result "1-0"]
[ECO "D37"]
[WhiteElo "2379"]
[BlackElo "2430"]
[Annotator "TA"]
[PlyCount "53"]
[EventDate "2024.01.26"]
[EventType "tourn"]
[EventCountry "HUN"]
[SourceTitle "playchess.com"]
[Source "ChessBase"]
[SourceQuality "1"]
[TimeControl "5400+30"]

{[%evp 13,53,8,6,4,4,6,9,10,11,9,4,13,18,1,41,0,0,0,25,-5,0,0,0,0,0,0,14,0,8,0,0,0,0,0,0,0,0,-8,0,0,29987,29988]} 1. d4 {[%emt 0:00:03]} d5 {[%emt 0:00:08]} 2. c4 {[%emt 0:00:04]} e6 {[%emt 0:00:05]} 3. Nf3 {[%emt 0:00:05]} Nf6 {[%emt 0:00:05]} 4. Nc3 {[%emt 0:00:05]} Be7 {[%emt 0:00:21]} 5. Bf4 {[%emt 0:00:16]} O-O {[%emt 0:00:16]} 6. e3 {[%emt 0:00:06]} Nbd7 {[%emt 0:00:27]} 7. c5 {[%emt 0:03:48]} Nh5 {[%emt 0:00:42]} 8. Bd3 {[%emt 0:01:14]} Nxf4 {[%emt 0:00:35]} 9. exf4 {[%emt 0:00:03]} b6 {[%emt 0:00:50]} 10. b4 {[%emt 0:00:54] Die Stellung ist ausgeglichen.} a5 {[%emt 0:00:07]} 11. a3 {[%emt 0:00:11]} c6 {[%emt 0:00:17]} 12. O-O {[%emt 0:01:13]} Ba6 {[%emt 0:00:49]} 13. Re1 {[%emt 0:10:56]} g6 {[%emt 0:05:39]} 14. Ne5 {[%emt 0:10:21]} Nxe5 {[%emt 0:03:54]} 15. fxe5 {[%emt 0:00:19]} Qb8 {[%emt 0:22:55]} 16. Rb1 {[%emt 0:07:10]} Bxd3 {[%emt 0:12:23]} 17. Qxd3 {[%emt 0:00:28]} axb4 {[%emt 0:00:35]} 18. Rxb4 {[%emt 0:15:03]} Rxa3 {[%emt 0:00:09]} 19. Rxb6 {[%emt 0:00:11]} Qa8 {[%emt 0:00:47]} 20. Reb1 {[%emt 0:02:33]} Bd8 {[%emt 0:02:44]} 21. R6b3 {[%emt 0:00:50]} Rxb3 {[%emt 0:03:12]} 22. Rxb3 {[%emt 0:00:03]} f6 {[%emt 0:00:11][%cal Bf7f6,Bf6e5,Be5d4][%mdl 32] Zielt auf ...fxe5 ab.} 23. Qh3 {[%emt 0:06:16]} fxe5 {[%emt 0:04:28]} 24. Qxe6+ {[%emt 0:01:04]} Kg7 {[%emt 0:00:31] Und ...Qa1+ würde nun gewinnen.} 25. g3 {[%emt 0:05:34]} (25. dxe5 $2 {ist das falsche Schlagen.} Qa1+ 26. Rb1 (26. Nb1 $2 Qd4 $19) 26... Qxc3 $19) 25... exd4 {[%emt 0:03:13]} 26. Ne2 {[%emt 0:00:15]} Re8 $2 {[%emt 0:07:17][%mdl 8192] [#]} 27. Qxe8 {[%emt 0:02:04] Gewichteter Fehlerwert: Weiß=0.08 (makellos) /Schwarz=0.33.  Verlustzug:     	---       	Schwarz=1     Ungenau:       	Weiß=2     	Schwarz=1     OK:         	Weiß=6     	Schwarz=10    Bester:       	Weiß=3     	---} 1-0

[Event "SixDays Budapest GM-B January 2024"]
[Site "Budapest"]
[Date "2024.01.28"]
[Round "2.5"]
[White "Varga, Zoltan"]
[Black "Celik, Hasan Huseyin"]
[Result "1/2-1/2"]
[ECO "A28"]
[WhiteElo "2366"]
[BlackElo "2436"]
[Annotator "RC"]
[PlyCount "76"]
[EventDate "2024.01.26"]
[EventType "tourn"]
[EventCountry "HUN"]
[SourceTitle "playchess.com"]
[Source "ChessBase"]
[SourceQuality "1"]
[TimeControl "5400+30"]

1. c4 e5 {[%emt 0:01:39]} 2. Nc3 {[%emt 0:08:25]} Nf6 {[%emt 0:00:08]} 3. Nf3 {[%emt 0:00:17]} Nc6 {[%emt 0:00:08]} 4. d4 {[%emt 0:00:13]} exd4 {[%emt 0:00:08]} 5. Nxd4 {[%emt 0:00:04]} Bb4 {[%emt 0:00:09]} 6. Nxc6 {[%emt 0:00:51]} Bxc3+ {[%emt 0:04:10]} 7. bxc3 {[%emt 0:00:01]} bxc6 {[%emt 0:00:13]} 8. g3 {[%emt 0:00:31]} O-O {[%emt 0:05:14]} 9. Bg2 {[%emt 0:00:03]} Re8 {[%emt 0:02:25]} 10. O-O {[%emt 0:00:14]} Ne4 {[%emt 0:07:06]} 11. Be3 {[%emt 0:25:45]} Qe7 {[%emt 0:09:27]} 12. Qb3 {[%emt 0:00:03]} c5 {[%emt 0:06:15]} 13. Bf4 {[%emt 0:04:56]} d6 {[%emt 0:01:33]} 14. f3 {[%emt 0:00:03]} Nf6 {[%emt 0:01:18]} 15. Bg5 {[%emt 0:02:45]} Bd7 {[%emt 0:06:08]} 16. Qb7 {[%emt 0:04:22]} Rec8 {[%emt 0:07:41]} 17. e4 {[%emt 0:06:50]} h6 {[%emt 0:00:07]} 18. Bf4 {[%emt 0:07:49]} Qe6 {[%emt 0:04:43]} 19. Qa6 {[%emt 0:01:12]} Rab8 {[%emt 0:17:05]} 20. Rab1 {[%emt 0:00:18]} Rb6 {[%emt 0:01:13]} 21. Qxa7 {[%emt 0:00:06]} Rxb1 {[%emt 0:00:07]} 22. Rxb1 {[%emt 0:00:01]} Qxc4 {[%emt 0:01:34]} 23. Qa3 {[%emt 0:06:28]} Qd3 {[%emt 0:02:46]} 24. Qc1 {[%emt 0:01:30]} Ra8 {[%emt 0:03:19]} 25. Rb2 {[%emt 0:05:33]} Ra4 {[%emt 0:02:19]} 26. Rd2 Qa6 27. e5 {[%emt 0:00:40]} dxe5 {[%emt 0:03:01]} 28. Bxe5 {[%emt 0:00:02]} Rxa2 29. Bf1 {[%emt 0:04:53]} Ra1 {[%emt 0:01:40]} 30. Bxa6 {[%emt 0:00:02]} Rxc1+ {[%emt 0:00:05]} 31. Kf2 {[%emt 0:00:02]} Bc6 {[%emt 0:00:34]} 32. Rd8+ {[%emt 0:07:55]} Ne8 {[%emt 0:00:01]} 33. Bb7 {[%emt 0:00:05]} Rc2+ {[%emt 0:01:56]} 34. Ke3 {[%emt 0:00:03]} Bxb7 {[%emt 0:00:20]} 35. Rxe8+ {[%emt 0:00:02]} Kh7 {[%emt 0:00:05]} 36. Re7 {[%emt 0:00:45]} Bd5 {[%emt 0:00:02]} 37. Rxc7 {[%emt 0:00:21]} c4 {[%emt 0:00:01]} 38. g4 {[%emt 0:01:51]} h5 {[%emt 0:02:01]} 1/2-1/2

[Event "SixDays Budapest GM-B January 2024"]
[Site "Budapest"]
[Date "2024.01.28"]
[Round "3.1"]
[White "Celik, Hasan Huseyin"]
[Black "Grover, Sahaj"]
[Result "1/2-1/2"]
[ECO "C68"]
[WhiteElo "2436"]
[BlackElo "2503"]
[Annotator "TA"]
[PlyCount "109"]
[EventDate "2024.01.26"]
[EventType "tourn"]
[EventCountry "HUN"]
[SourceTitle "playchess.com"]
[Source "ChessBase"]
[SourceQuality "1"]
[TimeControl "5400+30"]

{[%evp 23,109,0,-16,-15,-6,0,0,0,0,0,0,0,11,7,7,14,21,16,38,14,19,30,27,16,18,14,22,0,0,0,19,15,21,14,27,0,17,5,22,0,25,0,17,0,4,0,37,0,0,0,54,-23,47,3,10,2,4,0,0,-18,0,-30,-26,-44,-8,-19,0,-41,0,-8,-8,-17,-32,-37,0,0,-5,-14,0,0,0,-13,0,-20,0,-13,0,0]} 1. e4 {[%emt 0:06:56]} e5 {[%emt 0:01:26]} 2. Nf3 {[%emt 0:00:09]} Nc6 {[%emt 0:00:50]} 3. Bb5 {[%emt 0:00:19]} a6 {[%emt 0:00:07]} 4. Bxc6 {[%emt 0:00:09]} dxc6 {[%emt 0:00:05]} 5. O-O {[%emt 0:00:09]} Bg4 {[%emt 0:00:26]} 6. h3 {[%emt 0:00:18]} h5 {[%emt 0:00:06]} 7. d3 {[%emt 0:00:06]} Qf6 {[%emt 0:00:04]} 8. Nbd2 {[%emt 0:00:09]} Ne7 {[%emt 0:00:34]} 9. Re1 {[%emt 0:00:23]} Ng6 {[%emt 0:00:14]} 10. d4 {[%emt 0:00:06]} Nf4 {[%emt 0:00:31]} 11. dxe5 {[%emt 0:00:06] C68: Ruy Lopez: Exchange Variation, sidelines.} Qg6 {[%emt 0:00:05]} 12. Nh4 {[%emt 0:00:07]} Bxd1 {[%emt 0:00:04]} 13. Nxg6 {[%emt 0:00:04]} Nxg6 {[%emt 0:00:05]} 14. Rxd1 {[%emt 0:00:06]} O-O-O {[%emt 0:00:04]} 15. e6 $1 {[%emt 0:00:06] The main line 15.e6 scores better than 15.Re1.} f6 {[%emt 0:00:14]} 16. Re1 {[%emt 0:03:34]} Re8 {[%emt 0:01:56]} 17. Nf3 {[%emt 0:06:56]} Bb4 {[%emt 0:15:04]} 18. c3 {[%emt 0:12:19]} Bd6 {[%emt 0:00:10]} 19. Nd4 {[%emt 0:01:58]} Ne5 $146 {[%emt 0:10:37]} ({Predecessor:} 19... Rhg8 20. Be3 c5 21. Nf5 Rxe6 22. Rad1 Ne5 23. Rd5 b6 24. b3 g6 25. Nxd6+ cxd6 26. f3 Kc7 27. Red1 g5 28. a4 h4 29. Bf2 Rf8 30. Kf1 {½-½ Merkuriev,V (2233)-Volodarsky,Y (2376) RUS VC-4 final email 2021}) 20. Rd1 {[%emt 0:03:27]} Ng6 {[%emt 0:03:18]} 21. f3 {[%emt 0:06:23]} Nf8 {[%emt 0:08:26]} 22. Nf5 {[%emt 0:06:44]} Bc5+ {[%emt 0:00:06]} 23. Be3 {[%emt 0:00:04]} Bxe3+ {[%emt 0:00:05]} 24. Nxe3 {[%emt 0:00:02]} h4 {[%emt 0:01:55]} (24... g5 {looks sharper.} 25. Nf5 h4 26. e7 Ng6) 25. Rd2 {[%emt 0:03:14]} Nxe6 {[%emt 0:01:33]} 26. Rad1 {[%emt 0:00:05]} Re7 {[%emt 0:04:31]} 27. Nf5 {[%emt 0:02:30]} Rf7 {[%emt 0:00:07]} 28. Kf2 {[%emt 0:00:13]} c5 {[%emt 0:00:39]} 29. b3 {[%emt 0:02:49]} b6 {[%emt 0:01:51]} (29... g6 $5 30. Ne3 $8 Ng7 $14) 30. Ne3 {[%emt 0:03:55]} Re8 {[%emt 0:02:46]} 31. Nf5 {[%emt 0:02:22]} Rh8 {[%emt 0:00:34]} 32. Ne3 {[%emt 0:00:16]} Re8 {[%emt 0:01:22]} 33. Rd5 {[%emt 0:01:47]} g6 {[%emt 0:00:46]} 34. R5d2 {[%emt 0:05:49]} b5 {[%emt 0:04:29]} 35. Ng4 {[%emt 0:04:31]} Nf4 {[%emt 0:02:34]} 36. Ke3 {[%emt 0:02:26]} Ne6 {[%emt 0:00:11]} (36... Nh5 $11) 37. f4 {[%emt 0:02:17]} (37. Rd5 $14) 37... Ree7 {[%emt 0:11:06]} (37... f5 $11 38. Ne5 Rg7) 38. Rd5 {[%emt 0:04:57]} c6 {[%emt 0:04:08]} 39. Rd6 {[%emt 0:02:47]} Kc7 {[%emt 0:00:06]} 40. e5 {[%emt 0:02:41]} fxe5 {[%emt 0:01:39]} 41. fxe5 {[%emt 0:00:10]} Nf4 {[%emt 0:05:21]} 42. R1d2 {[%emt 0:05:45]} Rf5 {[%emt 0:02:44]} 43. Ke4 {[%emt 0:03:30]} Ne6 {[%emt 0:00:15]} 44. Ke3 {[%emt 0:01:55]} Nf4 {[%emt 0:03:37]} 45. Ke4 {[%emt 0:01:00]} Ne6 {[%emt 0:00:31]} 46. Ke3 {[%emt 0:00:24]} g5 {[%emt 0:03:24]} 47. c4 {[%emt 0:01:51]} bxc4 {[%emt 0:02:18]} 48. bxc4 {[%emt 0:00:01]} Rf1 {[%emt 0:01:30]} 49. Ke4 {[%emt 0:02:36]} Rf4+ {[%emt 0:06:19]} 50. Kd3 {[%emt 0:00:01]} Rf5 {[%emt 0:01:16]} 51. Ke4 {[%emt 0:00:40]} Rf4+ {[%emt 0:00:04]} 52. Kd3 {[%emt 0:00:02]} Rf5 {[%emt 0:00:05]} 53. Kc3 {[%emt 0:01:17]} Rf4 {[%emt 0:00:33]} 54. Kd3 {[%emt 0:01:11]} Rf5 {[%emt 0:00:54]} 55. Ke4 1/2-1/2

[Event "SixDays Budapest GM-B January 2024"]
[Site "Budapest"]
[Date "2024.01.28"]
[Round "3.2"]
[White "Pang, Tao"]
[Black "Varga, Zoltan"]
[Result "1-0"]
[ECO "D20"]
[WhiteElo "2430"]
[BlackElo "2366"]
[Annotator "TA"]
[PlyCount "72"]
[EventDate "2024.01.26"]
[EventType "tourn"]
[EventCountry "HUN"]
[SourceTitle "playchess.com"]
[Source "ChessBase"]
[SourceQuality "1"]
[TimeControl "5400+30"]

{[%evp 13,72,35,52,47,46,30,33,20,25,26,29,33,32,28,35,31,27,20,74,43,36,39,36,27,40,10,16,0,0,0,-8,-30,36,0,39,44,61,46,64,68,75,53,56,71,79,59,91,57,82,94,145,123,219,228,375,403,709,400,398,404,319]} 1. d4 {[%emt 0:00:02]} d5 {[%emt 0:01:49]} 2. c4 {[%emt 0:00:10]} dxc4 {[%emt 0:00:05]} 3. e4 {[%emt 0:00:12][%cal Be2e4,Be4e5][%mdl 32]} Nf6 {[%emt 0:00:05]} 4. e5 {[%emt 0:00:10]} Nd5 {[%emt 0:00:04]} 5. Bxc4 {[%emt 0:00:04]} Nb6 {[%emt 0:00:06]} 6. Bd3 {[%emt 0:00:34]} Nc6 {[%emt 0:00:10]} 7. Ne2 {[%emt 0:00:31]} Bg4 {[%emt 0:00:11][%cal Bc8g4,Bg4h5,Bh5g6,Bg6f5][%mdl 32]} 8. f3 {[%emt 0:06:12]} Bh5 {[%emt 0:00:04][%cal Od8d7]} 9. Nbc3 {[%emt 0:00:24]} e6 {[%emt 0:00:15][%cal Oh5g6]} 10. Be4 {[%emt 0:01:06] White is slightly better.} Bg6 {[%emt 0:02:13]} 11. O-O {[%emt 0:01:48]} Be7 {[%emt 0:01:45]} 12. Bxc6+ {[%emt 0:15:40]} bxc6 {[%emt 0:00:02]} 13. Nf4 {[%emt 0:01:22]} Bf5 {[%emt 0:01:41]} 14. g4 {[%emt 0:01:36]} Bg6 {[%emt 0:00:06]} 15. Be3 {[%emt 0:01:42]} Nc4 {[%emt 0:08:39]} (15... O-O $11 {keeps the balance.}) 16. Bf2 {[%emt 0:03:44]} O-O {[%emt 0:10:43]} 17. Qe2 {[%emt 0:04:54]} Nb6 {[%emt 0:00:11]} 18. Rfd1 {[%emt 0:01:41]} Rb8 {[%emt 0:00:42]} 19. Be3 {[%emt 0:05:56]} h6 {[%emt 0:02:01]} 20. Rac1 {[%emt 0:05:48]} Bh7 {[%emt 0:00:43]} 21. Ne4 {[%emt 0:03:12]} Nd5 {[%emt 0:01:19]} 22. b3 {[%emt 0:05:44]} Rb6 {[%emt 0:05:09]} (22... Bxe4 $11 23. fxe4 Nxe3 24. Qxe3 Bg5) 23. Rc4 {[%emt 0:02:59]} Nxf4 {[%emt 0:03:18]} 24. Bxf4 {[%emt 0:00:05][%cal Be3f4,Bf4g3,Bg3e1,Be1h4,Bh4f6][%mdl 32]} Qd5 {[%emt 0:00:05]} 25. Nc3 {[%emt 0:02:08]} Qd7 {[%emt 0:03:09]} 26. Na4 {[%emt 0:00:19] White is more active.} Rb5 {[%emt 0:01:01]} 27. Kg2 {[%emt 0:00:48]} Rd8 {[%emt 0:04:06]} 28. Bg3 {[%emt 0:01:40]} a5 {[%emt 0:07:35]} 29. Be1 {[%emt 0:01:33]} h5 {[%emt 0:05:10]} 30. h3 {[%emt 0:01:06]} hxg4 {[%emt 0:11:05]} 31. hxg4 {[%emt 0:00:06]} Ba3 {[%emt 0:00:13]} (31... c5 $142) 32. Qe3 {[%emt 0:03:15]} Qe8 {[%emt 0:03:32]} (32... Be7 $16 {might work better.}) 33. Bh4 $18 {[%emt 0:01:28]} Rdb8 {[%emt 0:00:43]} (33... Be7 $142) 34. Rh1 {[%emt 0:01:25]} Rb4 {[%emt 0:01:01]} (34... Bb4 $142 35. Qf4 f5 36. exf6 Bd6) 35. Rxb4 {[%emt 0:01:14]} Bxb4 {[%emt 0:00:35] [#]} 36. Bf6 $1 {[%emt 0:03:06][%mdl 512] Qg5 would kill now.} Qf8 {Weighted Error Value: White=0.20 (precise) /Black=0.27 (precise) .  Mistake:       	---       	Black=6      Inaccurate:     	White=5     	Black=2      OK:         	White=4     	Black=6      Best:        	White=2     	Black=3} ({Much worse is} 36... gxf6 37. Qh6 fxe5 38. dxe5 $18 (38. Qxh7+ Kf8 $18)) 1-0

[Event "SixDays Budapest GM-B January 2024"]
[Site "Budapest"]
[Date "2024.01.28"]
[Round "3.3"]
[White "Dau Khuong Duy"]
[Black "Lee, Alice"]
[Result "0-1"]
[ECO "C43"]
[WhiteElo "2309"]
[BlackElo "2379"]
[Annotator "RC"]
[PlyCount "104"]
[EventDate "2024.01.26"]
[EventType "tourn"]
[EventCountry "HUN"]
[SourceTitle "playchess.com"]
[Source "ChessBase"]
[SourceQuality "1"]
[TimeControl "5400+30"]

1. e4 {[%emt 0:00:05]} e5 {[%emt 0:00:17]} 2. Nf3 {[%emt 0:00:15]} Nf6 {[%emt 0:00:05]} 3. d4 {[%emt 0:00:15]} Nxe4 {[%emt 0:00:07]} 4. Bd3 {[%emt 0:00:09]} d5 {[%emt 0:00:09]} 5. Nxe5 {[%emt 0:00:06]} Nd7 {[%emt 0:00:09]} 6. Nxd7 {[%emt 0:00:47]} Bxd7 {[%emt 0:00:07]} 7. O-O {[%emt 0:00:19]} Bd6 {[%emt 0:01:00]} 8. Nc3 {[%emt 0:00:22]} Nxc3 {[%emt 0:00:08]} 9. bxc3 {[%emt 0:00:05]} O-O {[%emt 0:00:06]} 10. Qh5 {[%emt 0:00:25]} f5 {[%emt 0:00:07]} 11. Re1 {[%emt 0:00:33]} c6 {[%emt 0:00:07]} 12. Bg5 {[%emt 0:01:37]} Qc7 {[%emt 0:00:06]} 13. Re3 {[%emt 0:05:47]} Rf7 {[%emt 0:00:14]} 14. Rae1 {[%emt 0:02:27]} c5 {[%emt 0:00:11]} 15. dxc5 {[%emt 0:18:16]} Qxc5 {[%emt 0:00:05]} 16. Qh4 {[%emt 0:02:45]} h6 {[%emt 0:13:06]} 17. Be7 {[%emt 0:15:17]} Bxe7 {[%emt 0:04:43]} 18. Rxe7 {[%emt 0:00:16]} Qxc3 {[%emt 0:03:02]} 19. h3 {[%emt 0:07:25]} Raf8 {[%emt 0:11:17]} 20. Qf4 {[%emt 0:05:46]} a6 {[%emt 0:09:24]} 21. Qd6 {[%emt 0:03:36]} Qc6 {[%emt 0:00:32]} 22. Qb4 {[%emt 0:01:43]} b5 {[%emt 0:24:54]} 23. Qd4 {[%emt 0:04:52]} Rxe7 {[%emt 0:04:20]} 24. Rxe7 {[%emt 0:00:08]} Rf7 {[%emt 0:00:07]} 25. Re5 {[%emt 0:01:39]} Be6 {[%emt 0:00:17]} 26. f4 {[%emt 0:03:29]} Rf6 {[%emt 0:09:36]} 27. Kh2 {[%emt 0:00:36]} g6 {[%emt 0:01:43]} 28. Re3 {[%emt 0:02:19]} Bf7 {[%emt 0:00:41]} 29. Re7 {[%emt 0:02:01]} Qb6 {[%emt 0:00:49]} 30. Qb4 {[%emt 0:08:50]} Qd6 {[%emt 0:01:25]} 31. a3 {[%emt 0:00:06]} d4 {[%emt 0:02:13]} 32. Re5 {[%emt 0:01:23]} Re6 {[%emt 0:03:08]} 33. Qe1 {[%emt 0:04:46]} Rxe5 {[%emt 0:00:19]} 34. fxe5 {[%emt 0:00:07]} Qxa3 {[%emt 0:04:46]} 35. Qh4 {[%emt 0:00:20]} Qc5 {[%emt 0:00:53]} 36. Qd8+ {[%emt 0:00:36]} Kh7 {[%emt 0:00:39]} 37. Qf6 {[%emt 0:00:34]} Qd5 {[%emt 0:00:11]} 38. Qe7 {[%emt 0:01:19]} Qe6 {[%emt 0:00:45]} 39. Qc5 {[%emt 0:00:15]} Qd5 {[%emt 0:02:30]} 40. Qe7 {[%emt 0:00:05]} Kg8 {[%emt 0:00:05]} 41. Qc7 {[%emt 0:01:14]} a5 {[%emt 0:01:18]} 42. Qb8+ {[%emt 0:00:24]} Kg7 {[%emt 0:00:20]} 43. Bxb5 {[%emt 0:00:19]} Qc5 {[%emt 0:01:03]} 44. Bd7 {[%emt 0:01:41]} Qe7 {[%emt 0:01:25]} 45. Bc6 {[%emt 0:02:48]} h5 {[%emt 0:01:14]} 46. Kh1 {[%emt 0:00:34]} h4 {[%emt 0:00:13]} 47. Kh2 {[%emt 0:02:25]} g5 {[%emt 0:01:03]} 48. Kh1 {[%emt 0:01:29]} g4 {[%emt 0:00:32]} 49. hxg4 {[%emt 0:00:41]} fxg4 {[%emt 0:00:01]} 50. Qc8 {[%emt 0:01:12]} Qg5 {[%emt 0:00:16]} 51. Qd7 {[%emt 0:00:38]} Qc1+ {[%emt 0:00:51]} 52. Kh2 {[%emt 0:00:04]} Qf4+ {[%emt 0:00:02]} 0-1